{"text_format":"3","workbook":"xlsx","n_sheets":1,"sheets":["memo"],"not_rendered":{"defined_names":1},"read":"whole","date_system":"1900"}

{"sheet":"memo","index":0,"n_rows":44,"n_cols":18,"rows_kept":44,"merged":[[0,1,0,17],[8,1,8,17],[13,1,14,1],[13,2,14,2],[13,3,13,6],[13,7,14,7],[13,8,14,8],[13,9,14,9],[13,10,13,14],[13,15,14,15],[13,16,14,16],[13,17,14,17],[27,2,27,9],[29,1,31,17],[33,1,34,17],[42,5,42,9],[42,12,42,16],[43,5,43,9],[43,12,43,16]]}
[null,"LOGO DA ORGANIZAÇÃO DA SOCIEDADE CIVIL"]
{"$rows_empty":7}
[null,"MEMÓRIA DE CÁLCULO DO CUSTO DA EQUIPE ENVOLVIDA NO PROJETO DO QUADRO DE PESSOAL DA OSC"]
[]
[]
[]
[null,"DETALHAMENTO DOS ENCARGOS SOCIAIS INCIDENTES SOBRE OS SALÁRIOS"]
[null,"ITEM","CARGO","SALÁRIO",{"$nulls":3},"SAL.BASE CALC. INSS","SAL.BASE CALC. FGTS","SAL.BASE CALC. IR","DEDUÇÕES",{"$nulls":4},"TOTAL DEDUÇÕES","SAL. LÍQUIDO","FGTS"]
[{"$nulls":3},"SALÁRIO","S/AVISO","REP. REM.","ARRED.",{"$nulls":3},"INSS","IR","ARRED.","C. SIND.","V.TRANSP."]
[{"$nulls":15},{"$f":"SUM(K16:O16)","v":0},{"$f":"SUM(D16+E16+F16+G16)-P16","v":0}]
[{"$nulls":15},{"$f":"SUM(K17:O17)","v":0},0]
[{"$nulls":15},{"$f":"SUM(K18:O18)","v":0},0]
[{"$nulls":15},0,0]
[{"$nulls":15},0,0]
[{"$nulls":15},0,0]
[{"$nulls":15},0,{"$f":"SUM(D22+E22+F22+G22)-P22","v":0}]
[{"$nulls":15},0,0]
[{"$nulls":15},0,0]
[{"$nulls":15},0,0]
[{"$nulls":15},0,0]
[{"$nulls":15},0,0]
[null,null,"TOTAL",{"$nulls":7},{"$f":"SUM(K16:K27)","v":0},0,0,0,0,0,0,0]
[{"$nulls":3},{"$f":"SUM(D16:D27)","v":0},{"$f":"SUM(E16:E27)","v":0},{"$f":"SUM(F16:F27)","v":0},null,{"$f":"SUM(H16:H27)","v":0},{"$f":"SUM(I16:I27)","v":0},{"$f":"SUM(J16:J27)","v":0}]
[null,"Esta planilha é apenas orientativa, podendo a área técnica competente(contabilidade) responsável na elaboração do detalhamento do custo do funcionário envolvido no projeto, apresentar os outros elementos que julgarem necessários, para demonstrar claramente todos itens que comporão o custo do funcionário, em conformidade com as despesas definidas no dispositivo do Art. 46, Inciso I, da Lei 13.019/2014, alterada pela Lei 13.204/2015."]
[]
[]
[]
[null,"A compatibilização de valor de mercado dos salários dos respectivos cargos da equipe envolvida nas atividades e/ou Projetos deverá ser referenciada mediante cópia Convênção de Dissídio Coletivo da categoria.  "]
{"$rows_empty":8}
[{"$nulls":5},"-------------------------------------------------------------------------------------",{"$nulls":6},"-------------------------------------------------------------------------------------"]
[{"$nulls":5},"Contador responsável  pela OSC",{"$nulls":6},"Assinatura do responsável legal pela OSC"]